bitfinex/quotes_ETHUSD_20220227
["timestamp","ask_amount","ask_price","bid_price","bid_amount"]
[1645922160256,0.00516572,2756.5,2756.3,11.66998626]
[1645922160455,0.00516572,2756.5,2756.4,0.1451]
[1645922160655,0.00516572,2756.5,2756.4,10.95008626]
[1645922160856,0.67354143,2757.2,2756.5,10.36998626]
[1645922161056,0.00359282,2757.3,2756.8,10.36998626]
[1645922161057,0.0206158,2757.0,2756.8,10.36998626]
[1645922161256,1.32070365,2756.9,2756.8,10.36998626]
[1645922163114,1.32070365,2756.9,2756.8,10.66998626]
[1645922163313,1.32070365,2756.9,2756.8,12.10498626]
[1645922163514,0.00515437,2757.0,2756.8,12.24988626]
[1645922163713,0.00515437,2757.0,2756.9,0.1449]
[1645922163915,1.32580351,2757.0,2756.9,0.1449]
[1645922164115,1.27580351,2757.0,2756.9,0.1449]
[1645922164316,0.02061438,2757.4,2756.9,0.1449]
[1645922164520,0.67713425,2757.8,2756.9,0.1449]
[1645922164721,0.005155,2757.1,2756.9,0.1449]
[1645922165517,0.00359282,2757.7,2756.9,0.1449]
[1645922165718,0.67354143,2757.8,2756.9,0.1449]
[1645922166353,0.67354143,2757.8,2757.0,10.36998626]
[1645922166554,0.67354143,2757.8,2757.0,10.66998626]
[1645922166755,0.67354143,2757.8,2757.0,15.16998626]
[1645922166955,0.00298017,2757.5,2757.0,11.66998626]
[1645922167359,0.00298017,2757.5,2757.1,10.36998626]
[1645922167956,0.67713425,2758.0,2757.4,10.36998626]
[1645922168156,0.67713425,2758.0,2757.3,0.5]
[1645922168157,0.02187382,2757.9,2757.3,0.5]
[1645922168964,0.02187382,2757.9,2757.4,0.3]
[1645922169162,0.00359282,2758.1,2757.4,0.3]
[1645922169363,0.005469,2757.7,2757.4,11.31]
[1645922169561,0.005469,2757.7,2757.4,11.745]
[1645922169763,0.005469,2757.7,2757.6,11.31]
[1645922169966,0.005469,2757.7,2757.6,14.81]
[1645922170218,0.005469,2757.7,2757.6,11.31]
[1645922170415,0.67713425,2758.5,2757.6,11.31]
[1645922170616,0.00546896,2757.8,2757.6,14.81]
[1645922170816,0.00546896,2757.8,2757.6,11.31]
[1645922171214,0.00546896,2757.8,2757.7,11.01]
[1645922171616,0.00359282,2758.4,2757.7,11.01]
[1645922171814,0.00546887,2757.9,2757.7,11.01]
[1645922172216,0.00546887,2757.9,2757.6,11.61]
[1645922172417,0.00546887,2757.9,2757.6,11.31]
[1645922172818,0.00359282,2758.4,2757.6,11.31]
[1645922173016,0.00546887,2757.9,2757.6,11.31]
[1645922173621,0.0218722,2758.3,2757.6,11.31]
[1645922173622,0.65447532,2758.5,2757.6,0.3]
[1645922173865,1.8736,2758.7,2757.6,11.01]
[1645922174469,1.8736,2758.7,2757.6,13.8619]
[1645922175471,0.00297614,2758.4,2757.6,13.8619]
[1645922176372,1.8736,2758.7,2757.6,13.8619]
[1645922176572,1.8736,2758.7,2757.9,0.0025131]
[1645922177616,1.8736,2758.7,2757.8,9.3775687]
[1645922177809,1.8736,2758.7,2758.2,0.00251283]
[1645922178710,1.8736,2758.7,2756.6,11.17019152]
[1645922178711,0.00090904,2758.1,2757.0,3.913]
[1645922178909,0.00090904,2758.1,2756.8,2.9131]
[1645922179115,0.25,2758.0,2756.4,3.9906]
[1645922179312,0.25,2758.0,2756.0,2.9131]
[1645922179313,1.8736,2757.2,2756.0,2.9131]
[1645922179512,1.8736,2757.2,2755.2,1.7082]
[1645922179513,8.50357661,2757.1,2755.5,0.25]
[1645922179714,8.50357661,2757.1,2755.4,11.01]
[1645922179715,9.46327425,2757.1,2755.4,11.01]
[1645922179911,1.8736,2756.5,2755.4,11.01]
[1645922180313,1.8736,2756.5,2756.2,0.00546973]
[1645922181111,1.8736,2756.5,2755.4,11.01]
[1645922181366,1.8736,2756.5,2755.4,11.31]
[1645922181566,1.8736,2756.5,2756.3,0.5]
[1645922184676,1.8736,2756.4,2756.3,0.5]
[1645922185130,1.8736,2756.4,2756.3,0.50526925]
[1645922185321,1.8736,2756.4,2756.3,0.45846925]
[1645922185322,11.14412385,2756.4,2756.3,0.45846925]
[1645922185524,7.8655,2756.3,2754.4,4.2955]
[1645922185717,5.0,2756.0,2754.5,0.20487197]
[1645922185917,1.8736,2755.5,2754.5,0.20487197]
[1645922186116,3.5,2755.6,2754.5,0.20487197]
[1645922186316,1.8736,2755.4,2754.4,3.0455]
[1645922186922,1.8736,2755.4,2754.1,0.43581225]
[1645922187122,5.0,2755.4,2754.2,0.20522995]
[1645922187323,1.8736,2755.0,2754.1,0.43581225]
[1645922187531,8.5,2754.9,2754.1,0.43581225]
[1645922187729,0.523,2754.8,2754.1,0.43581225]
[1645922187925,8.69211172,2754.7,2754.1,0.43581225]
[1645922188129,1.8736,2754.4,2754.1,0.43581225]
[1645922188430,2.7204362,2754.7,2754.1,0.43581225]
[1645922188431,1.2890062,2754.7,2754.1,0.43581225]
[1645922188626,1.2890062,2754.7,2754.2,0.3603]
[1645922188862,1.2890062,2754.7,2754.3,11.21810196]
[1645922189064,1.2890062,2754.7,2754.4,0.20811886]
[1645922189265,1.2890062,2754.7,2754.2,3.8]
[1645922189463,1.2890062,2754.7,2754.2,4.323]
[1645922189663,1.2890062,2754.7,2754.3,0.2081078]
[1645922189863,1.2890062,2754.7,2754.3,1.1159778]
[1645922190062,1.2890062,2754.7,2754.4,0.2081078]
[1645922191065,1.2890062,2754.7,2754.4,3.71357577]
[1645922191268,1.2890062,2754.7,2754.5,0.5081078]
[1645922191670,1.2890062,2754.7,2754.4,0.30546797]
[1645922191867,1.2890062,2754.7,2754.4,0.00546797]
[1645922192072,1.2890062,2754.7,2754.1,0.43581225]
[1645922192473,1.2890062,2754.7,2754.4,0.00546797]
[1645922193324,1.2890062,2754.7,2754.1,0.43581225]
[1645922193721,5.0,2754.5,2754.4,0.00546797]
[1645922193922,1.8736,2754.5,2754.4,0.00546797]
[1645922194121,7.3966,2754.5,2754.4,6.797e-05]
[1645922194720,8.3966,2754.5,2754.4,6.797e-05]
[1645922194921,8.3966,2754.5,2754.1,0.43581225]
[1645922195120,0.9085,2754.4,2754.1,0.43581225]
[1645922195320,5.0,2754.3,2754.1,0.43581225]
[1645922195524,5.0,2754.2,2754.1,0.43581225]
[1645922195723,1.8736,2754.2,2754.1,0.43581225]
[1645922195928,6.8736,2754.2,2754.1,0.43581225]
[1645922196223,7.8736,2754.2,2754.1,0.43581225]
[1645922196453,1.8736,2754.2,2754.1,0.43581225]
[1645922204659,12.40317132,2754.2,2754.1,1.225e-05]
[1645922204860,13.0192524,2754.2,2754.1,1.225e-05]
[1645922205061,14.0192524,2754.2,2754.1,1.225e-05]
[1645922205457,15.0192524,2754.2,2754.1,1.225e-05]
[1645922205657,16.0192524,2754.2,2754.1,1.225e-05]
[1645922205857,11.5192524,2754.2,2754.1,1.225e-05]
[1645922206057,5.30696108,2754.2,2754.1,1.225e-05]
[1645922206262,1.8736,2754.2,2754.1,1.225e-05]
[1645922206676,2.8736,2754.2,2754.1,1.225e-05]
[1645922207459,1.8736,2754.2,2754.1,1.225e-05]
[1645922209516,2.1573,2754.6,2754.1,1.225e-05]
[1645922209915,1.0,2754.6,2754.1,1.225e-05]
[1645922210518,1.5390062,2754.7,2754.1,1.225e-05]
[1645922210716,1.2890062,2754.7,2754.1,1.225e-05]
[1645922210915,1.2390062,2754.7,2754.1,1.225e-05]
[1645922211563,1.8736,2754.4,2754.1,1.225e-05]
[1645922211758,1.8736,2754.4,2754.3,0.00546143]
[1645922212565,1.8736,2754.4,2754.1,1.225e-05]
[1645922212759,1.8736,2754.4,2754.2,0.00546147]
[1645922213764,1.8736,2754.4,2754.1,1.225e-05]
[1645922214168,1.8736,2754.4,2754.2,0.00546152]
[1645922215118,1.8736,2754.4,2754.1,1.225e-05]
[1645922215317,1.8736,2754.4,2754.2,0.00546152]
[1645922216117,1.8736,2754.4,2754.1,1.225e-05]
[1645922216513,1.8736,2754.4,2754.2,0.00546152]
[1645922217321,1.8736,2754.4,2754.1,1.225e-05]
[1645922217718,1.8736,2754.4,2754.2,0.00466152]
[1645922218518,1.8736,2754.4,2754.1,1.225e-05]
[1645922219273,5.5,2754.3,2753.3,0.54367972]
[1645922219469,5.5,2754.3,2753.3,0.736]
[1645922219671,5.5,2754.3,2753.3,0.3]
[1645922219872,5.5,2754.3,2753.1,0.73819996]
[1645922220072,5.5,2754.3,2753.7,0.00249512]
[1645922220973,5.5,2754.3,2753.1,0.13819996]
[1645922221374,5.5,2754.3,2753.9,0.00546179]
[1645922222171,5.5,2754.3,2753.1,0.13819996]
[1645922222371,5.5,2754.3,2753.1,1.04649996]
[1645922222617,5.5,2754.3,2754.0,0.0054617]
[1645922223411,5.5,2754.3,2753.1,0.13819996]
[1645922223612,5.5,2754.3,2754.0,0.00546165]
[1645922224725,1.8736,2754.4,2753.6,0.436]
[1645922224920,1.8736,2754.4,2754.0,0.00546165]
[1645922225520,3.1126062,2754.7,2754.0,0.00546165]
[1645922225722,3.1126062,2754.7,2753.8,1.3440494]
[1645922225920,3.1126062,2754.7,2753.8,1.6440494]
[1645922226120,3.1126062,2754.7,2754.1,0.00546161]
[1645922226382,1.2390062,2754.7,2754.1,0.00546161]
[1645922226569,1.2390062,2754.7,2754.0,0.39146161]
[1645922226769,1.2390062,2754.7,2754.0,1.644]
[1645922227174,1.2390062,2754.7,2754.0,2.8519755]
[1645922227376,1.2390062,2754.7,2754.0,15.1302855]
[1645922227579,1.2390062,2754.7,2754.0,4.7599855]
[1645922227776,1.2390062,2754.7,2754.0,4.1202855]
[1645922228177,1.2390062,2754.7,2754.0,2.85201]
[1645922228577,1.2390062,2754.7,2754.0,2.85432401]
[1645922229376,1.2390062,2754.7,2754.0,2.85201]
[1645922229580,1.2390062,2754.7,2754.0,2.85729173]
[1645922229977,1.2390062,2754.7,2754.0,3.55921249]
[1645922230200,1.2390062,2754.7,2754.1,0.3603]
[1645922230410,1.2390062,2754.7,2754.1,0.7963]
[1645922230902,1.2390062,2754.7,2754.2,11.18478035]
[1645922231105,1.2390062,2754.7,2754.3,0.61078035]
[1645922231303,1.2390062,2754.7,2754.3,1.51871035]
[1645922231505,1.2390062,2754.7,2754.4,0.17478035]
[1645922231704,1.2390062,2754.7,2754.4,0.61078035]
[1645922231901,1.2390062,2754.7,2754.5,0.17478035]
[1645922233104,1.2390062,2754.7,2754.5,0.61078035]
[1645922233310,1.2390062,2754.7,2754.6,0.17478035]
[1645922233504,1.2390062,2754.7,2754.6,0.61078035]
[1645922233961,1.2390062,2754.7,2754.6,0.91078035]
[1645922235360,1.2390062,2754.7,2754.6,11.92078035]
[1645922235565,1.2390062,2754.7,2754.6,12.28108035]
[1645922235863,1.2390062,2754.7,2754.6,13.96156427]
[1645922236062,1.2390062,2754.7,2754.6,18.95825185]
[1645922236363,6.2e-06,2754.7,2754.6,19.66014538]
[1645922236561,6.2e-06,2754.7,2754.6,18.97966146]
[1645922236962,6.2e-06,2754.7,2754.6,19.96270635]
[1645922237266,6.2e-06,2754.7,2754.6,20.66459988]
[1645922237466,6.2e-06,2754.7,2754.6,19.97966146]
[1645922237710,6.2e-06,2754.7,2754.6,4.29707085]
[1645922237912,6.2e-06,2754.7,2754.6,2.91078035]
[1645922238208,6.2e-06,2754.7,2754.6,1.91078035]
[1645922238408,6.2e-06,2754.7,2754.6,2.91078035]
[1645922238808,6.2e-06,2754.7,2754.6,14.28108035]
[1645922239211,6.2e-06,2754.7,2754.6,2.91078035]
[1645922239613,6.2e-06,2754.7,2754.6,1.91078035]
[1645922239816,6.2e-06,2754.7,2754.6,12.92078035]
[1645922240016,6.2e-06,2754.7,2754.6,13.92078035]
[1645922241457,6.2e-06,2754.7,2754.6,19.27776793]
[1645922241659,6.2e-06,2754.7,2754.6,19.97966146]
[1645922242258,6.2e-06,2754.7,2754.6,14.98297388]
[1645922242460,6.2e-06,2754.7,2754.6,14.28108035]
[1645922244864,6.2e-06,2754.7,2754.6,19.27776793]
[1645922245107,6.2e-06,2754.7,2754.6,14.98297388]
[1645922245311,6.2e-06,2754.7,2754.6,19.27776793]
[1645922245509,6.2e-06,2754.7,2754.6,15.32962388]
[1645922245709,6.2e-06,2754.7,2754.6,14.62773035]
[1645922247209,6.2e-06,2754.7,2754.6,19.62441793]
[1645922247511,6.2e-06,2754.7,2754.6,20.32631146]
[1645922248010,6.2e-06,2754.7,2754.6,20.47151146]
[1645922248412,6.2e-06,2754.7,2754.6,15.11452388]
[1645922248615,6.2e-06,2754.7,2754.6,1.61078035]
[1645922248867,6.2e-06,2754.7,2754.6,0.17478035]
[1645922249660,6.2e-06,2754.7,2754.5,0.5]
[1645922249860,6.2e-06,2754.7,2754.2,0.436]
[1645922250859,6.2e-06,2754.7,2754.2,0.736]
[1645922251461,6.2e-06,2754.7,2754.2,0.436]
[1645922251664,6.2e-06,2754.7,2754.0,0.50517391]
[1645922252271,6.2e-06,2754.7,2754.0,0.00517391]
[1645922252603,6.2e-06,2754.7,2753.7,3.9103]
[1645922252805,6.2e-06,2754.7,2754.0,0.0051738]
[1645922253611,6.2e-06,2754.7,2753.7,0.25]
[1645922253809,6.2e-06,2754.7,2754.0,0.00517316]
[1645922254411,1.0000062,2754.7,2754.0,0.00517316]
[1645922254616,1.0000062,2754.7,2753.5,0.5]
[1645922254617,5.0,2754.2,2753.5,0.5]
[1645922254814,5.0,2754.2,2753.0,0.25]
[1645922254815,5.0,2754.0,2753.0,0.25]
[1645922255016,6.97795,2754.0,2753.4,0.02069709]
[1645922255212,1.8736,2753.5,2753.4,0.02069709]
[1645922255812,1.8736,2753.5,2752.8,0.5]
[1645922256212,1.8736,2753.5,2752.5,0.25]
[1645922256459,1.8736,2753.5,2752.6,0.17943164]
[1645922256664,1.8736,2753.5,2752.7,0.17943164]
[1645922256862,5.0,2753.3,2752.5,0.5]
[1645922257062,8.5,2753.3,2752.5,0.5]
[1645922257262,1.8736,2752.8,2752.5,0.5]
[1645922257464,4.5,2753.3,2752.5,0.52071091]
[1645922257663,1.31708356,2753.2,2752.5,0.52071091]
[1645922257865,1.8736,2752.7,2752.5,0.52071091]
[1645922258269,1.8736,2752.7,2752.5,0.5]
[1645922258575,0.62921026,2752.4,2752.0,0.02071251]
[1645922258769,5.25,2752.3,2752.0,0.02071251]
[1645922258964,1.8736,2752.1,2752.0,0.02071251]
[1645922259572,1.8736,2752.1,2751.1,0.0953]
[1645922259773,1.8736,2752.1,2751.0,7.36]
[1645922259774,3.5,2752.0,2751.2,0.17643]
[1645922259974,3.5,2752.0,2750.4,0.007]
[1645922259975,1.8736,2751.3,2750.4,0.007]
[1645922260223,1.8736,2751.3,2750.5,0.17657267]
[1645922260829,1.8736,2751.3,2751.1,0.5]
[1645922261625,1.8736,2751.3,2750.8,0.00517876]
[1645922261828,1.8736,2751.3,2750.6,0.523]
[1645922262024,1.8736,2751.3,2750.7,0.17591216]
[1645922262228,1.8736,2751.3,2751.1,0.00517852]
[1645922263035,1.8736,2751.3,2750.4,0.007]
[1645922263231,1.8736,2751.3,2751.1,0.5]
[1645922263439,1.8736,2751.3,2751.1,0.50517852]
[1645922264265,1.8736,2751.3,2751.1,0.5]
[1645922264668,1.8736,2751.3,2751.1,0.50522772]
[1645922265468,1.8736,2751.3,2751.1,0.5]
[1645922265870,1.8736,2751.3,2751.1,0.50522772]
[1645922266872,1.8736,2751.3,2751.1,0.5]
[1645922267070,1.8736,2751.3,2751.1,0.50522772]
[1645922267927,1.8736,2751.3,2751.1,0.5]
[1645922268126,1.8736,2751.8,2751.1,0.50515876]
[1645922268526,1.8736,2751.8,2751.7,0.5]
[1645922269127,0.04995,2752.3,2751.7,0.5]
[1645922269327,0.62921026,2752.4,2751.7,0.5]
[1645922269328,1.8736,2752.1,2751.7,0.5]
[1645922269529,0.62921026,2752.4,2751.7,0.5]
[1645922269728,0.62921026,2752.4,2751.8,4.323]
[1645922269931,0.62921026,2752.4,2751.8,2.6403653]
[1645922270132,0.62921026,2752.4,2751.8,18.4503653]
[1645922270729,0.62921026,2752.4,2752.1,11.91857]
[1645922270929,0.62921026,2752.4,2752.2,1.43157]
[1645922271377,0.62921026,2752.4,2752.3,1.0]
[1645922271575,0.62921026,2752.4,2752.3,1.523]
[1645922271977,0.62921026,2752.4,2752.3,0.523]
[1645922273379,0.62921026,2752.4,2752.3,15.333]
[1645922273580,0.62921026,2752.4,2752.3,22.876]
[1645922273882,1.026e-05,2752.4,2752.3,29.23298758]
[1645922274078,1.026e-05,2752.4,2752.3,32.14198758]
[1645922274278,1.07821026,2753.9,2752.8,0.9082444]
[1645922274482,6.28,2754.2,2753.2,0.90824]
[1645922274483,5.1091,2754.2,2753.2,0.90824]
[1645922274680,1.8736,2754.2,2753.3,4.023]
[1645922274881,1.8736,2754.2,2753.3,4.323]
[1645922275165,1.8736,2754.5,2753.3,4.323]
[1645922275352,1.8736,2754.5,2753.3,0.823]
[1645922275547,1.8736,2754.5,2753.6,0.00545916]
[1645922276148,1.8236,2754.5,2753.6,0.00545916]
[1645922276348,1.8236,2754.5,2753.5,0.523]
[1645922276551,1.8236,2754.5,2753.5,0.823]
[1645922276748,1.8236,2754.5,2753.5,0.523]
[1645922276949,0.05038,2754.4,2753.5,0.523]
[1645922277153,0.05038,2754.4,2753.2,0.437]
[1645922277952,0.05038,2754.4,2753.2,0.937]
[1645922278156,0.05038,2754.4,2753.2,2.75347]
[1645922278552,0.05038,2754.4,2753.2,0.937]
[1645922279192,0.05038,2754.4,2753.9,0.5]
[1645922279389,0.05038,2754.4,2753.2,0.437]
[1645922279390,0.39615153,2753.5,2753.2,0.437]
[1645922279587,0.39615153,2753.5,2753.2,0.737]
[1645922280391,0.39615153,2753.5,2753.2,0.44247619]
[1645922280595,0.39615153,2753.5,2753.2,0.00547619]
[1645922280596,0.34615153,2753.5,2753.2,0.00547619]
[1645922281191,0.34615153,2753.5,2753.1,0.1248]
[1645922281798,0.34615153,2753.5,2753.0,0.437]
[1645922282622,0.34615153,2753.5,2753.0,1.34529]
[1645922282821,0.34615153,2753.5,2753.0,1.3452836]
[1645922283022,0.34615153,2753.5,2753.0,0.437]
[1645922283833,0.34615153,2753.5,2753.1,0.00547474]
[1645922284831,0.34615153,2753.5,2752.8,0.737]
[1645922285127,0.34615153,2753.5,2753.2,0.0054747]
[1645922285929,0.34615153,2753.5,2752.9,0.3]
[1645922286130,0.34615153,2753.5,2753.0,0.437]
[1645922286389,0.34615153,2753.5,2753.2,0.00547465]
[1645922287284,0.34615153,2753.5,2752.8,0.737]
[1645922287481,0.34615153,2753.5,2753.2,0.00547465]
[1645922288084,0.0483,2753.4,2753.2,0.00547465]
[1645922288488,1.8232,2753.2,2752.0,1.15204402]
[1645922288687,3.54957,2753.1,2752.8,0.02190189]
[1645922288883,13.0,2753.0,2752.0,0.124]
[1645922289086,1.8232,2752.6,2752.0,0.124]
[1645922289285,8.5,2752.5,2752.0,0.124]
[1645922289593,8.75,2752.5,2752.0,0.124]
[1645922289985,5.25,2752.5,2752.0,0.074]
[1645922290255,2.946,2752.6,2752.0,0.074]
[1645922290256,1.8232,2752.6,2752.0,0.074]
[1645922290860,1.8232,2752.6,2751.6,0.437]
[1645922291043,1.8232,2752.6,2751.4,11.31]
[1645922291243,1.8232,2752.6,2751.4,11.01]
[1645922291641,1.8232,2752.6,2751.5,7.36]
[1645922292042,2.0732,2752.6,2751.5,7.36]
[1645922292443,5.5732,2752.6,2751.9,0.00547583]
[1645922292662,5.05002,2752.5,2751.9,0.00547583]
[1645922292947,5.0,2752.2,2751.9,0.00547583]
[1645922293151,8.0,2751.9,2750.8,7.36]
[1645922293346,5.0,2751.7,2750.8,7.36]
[1645922293542,5.0,2751.7,2750.4,0.007]
[1645922293543,1.8232,2751.1,2750.4,0.007]
[1645922294785,2.7999,2751.1,2750.4,0.007]
[1645922295283,1.8232,2751.1,2750.4,0.007]
[1645922295481,1.1539,2751.8,2750.5,0.78186581]
[1645922295681,1.8232,2752.0,2750.7,0.3603]
[1645922295879,1.8232,2752.0,2750.8,0.97456125]
[1645922296084,0.00301121,2751.6,2751.1,11.3703]
[1645922296278,0.00301121,2751.6,2751.4,11.3703]
[1645922296478,0.00301121,2751.6,2751.5,14.52888473]
[1645922296681,1.121e-05,2751.6,2751.5,19.88587231]
[1645922296885,1.1851,2753.4,2752.1,0.3603]
[1645922296886,3.14979703,2753.2,2752.1,0.3603]
[1645922297183,1.1851,2753.4,2752.3,11.3703]
[1645922297392,0.34615153,2753.5,2752.2,0.53368695]
[1645922297393,0.34615153,2753.5,2752.5,11.3703]
[1645922297647,0.34615153,2753.5,2752.7,11.3703]
[1645922297835,0.34615153,2753.5,2752.8,11.447]
[1645922298235,0.34615153,2753.5,2752.8,12.447]
[1645922298436,0.34615153,2753.5,2752.8,12.397]
[1645922298739,0.34615153,2753.5,2752.8,13.30531]
[1645922299137,0.34615153,2753.5,2753.0,0.5]
[1645922299339,0.34615153,2753.5,2753.1,1.64528]
[1645922299537,0.34615153,2753.5,2753.1,1.94528]
[1645922300242,0.34615153,2753.5,2753.1,1.34528]
[1645922300438,0.34615153,2753.5,2752.8,4.7248672]
[1645922300439,0.70057802,2753.0,2752.8,1.0]
[1645922300639,0.70057802,2753.0,2752.8,0.437]
[1645922301873,0.70057802,2753.0,2752.6,2.8545]
[1645922302069,0.70604922,2753.0,2752.2,0.09668695]
[1645922302674,0.70604922,2753.0,2752.2,0.53368695]
[1645922303070,0.70057802,2753.0,2752.2,0.53368695]
[1645922303271,0.00547147,2752.7,2752.2,0.53368695]
[1645922304075,0.70057802,2753.0,2752.2,0.53368695]
[1645922304274,0.70057802,2753.0,2752.3,0.9086]
[1645922304474,0.70057802,2753.0,2752.2,0.53368695]
[1645922304475,0.0054716,2752.6,2752.2,0.53368695]
[1645922305328,0.70057802,2753.0,2752.2,0.09668695]
[1645922305527,0.2814,2752.9,2751.9,3.2648]
[1645922305724,0.70057802,2753.0,2751.9,3.2648]
[1645922305725,0.00547165,2752.5,2751.9,3.2648]
[1645922305928,0.00547165,2752.5,2751.9,2.7648]
[1645922306530,0.70057802,2753.0,2751.9,2.7648]
[1645922307032,0.00547183,2752.3,2751.9,2.7648]
[1645922307830,0.04943,2752.9,2751.9,2.7648]
[1645922308031,0.00547192,2752.2,2751.9,2.7648]
[1645922308442,0.00547192,2752.2,2751.4,0.00547363]
[1645922308638,3.1366144,2752.1,2751.4,0.00547363]
[1645922308877,1.14567192,2752.2,2751.3,0.5]
[1645922308878,4.8639144,2752.0,2751.3,0.5]
[1645922309089,1.8232,2751.6,2751.3,0.5]
[1645922309283,1.8232,2751.6,2751.4,0.0054733]
[1645922310083,1.8232,2751.6,2751.3,0.5]
[1645922310288,2.935,2751.6,2751.3,0.5]
[1645922310483,2.98502,2751.6,2751.4,0.005473]
[1645922310685,0.90936,2751.5,2751.4,0.005473]
[1645922311087,1.87322,2751.6,2751.4,0.005473]
[1645922311295,6.05002,2751.6,2751.4,0.005473]
[1645922311488,1.8232,2751.4,2751.3,0.5]
[1645922311689,1.87168,2751.4,2751.3,0.50547304]
[1645922311888,2.7732,2751.4,2751.3,0.50547304]
[1645922312091,4.08996355,2751.4,2751.3,0.50547304]
[1645922312291,2.8186,2751.4,2751.3,0.50547304]
[1645922312486,2.8186,2751.4,2751.3,0.5]
[1645922312487,2.7732,2751.4,2751.3,0.5]
[1645922313346,0.00546878,2751.7,2751.3,0.5]
[1645922313948,1.77826878,2751.7,2751.3,0.5]
[1645922314149,1.77826894,2751.7,2751.4,0.00546969]
[1645922314951,1.77826894,2751.7,2751.3,0.5]
[1645922314952,1.0,2751.5,2751.3,0.5]
[1645922315456,1.0,2751.5,2751.4,0.00546972]
[1645922315853,1.778269,2751.7,2751.4,0.00546972]
[1645922316253,1.7728,2751.7,2751.3,0.5]
[1645922316469,1.77580962,2751.7,2751.3,0.5]
[1645922317277,1.7728,2751.7,2751.3,0.5]
[1645922317481,5.0,2751.5,2751.3,0.5]
[1645922317682,11.2728,2751.4,2751.3,0.5]
[1645922317877,7.7728,2751.4,2751.3,0.5]
[1645922318082,3.7728,2751.4,2751.3,0.5]
[1645922320426,3.7728,2751.4,2750.7,0.02187005]
[1645922320633,0.36778985,2750.7,2750.4,0.007]
[1645922321245,0.61778985,2750.7,2750.4,0.007]
[1645922321435,2.5440397,2750.6,2750.5,0.5]
[1645922321640,0.61778985,2750.7,2750.5,0.0001]
[1645922321641,1.82744985,2750.7,2750.5,0.0001]
[1645922321840,1.8228,2750.6,2750.5,0.0001]
[1645922322037,6.8228,2750.6,2750.5,0.0001]
[1645922322241,7.8228,2750.6,2750.5,0.0001]
[1645922322439,8.8228,2750.6,2750.5,0.0001]
[1645922322843,8.0,2750.5,2749.9,0.007]
[1645922323046,5.0,2750.0,2749.9,0.007]
[1645922323437,7.7728,2750.0,2749.9,0.007]
[1645922323641,1.82018,2749.9,2748.2,3.5]
[1645922323905,5.0,2749.7,2748.1,7.36]
[1645922324105,7.02795,2749.8,2748.1,7.36]
[1645922324106,1.7728,2748.5,2748.1,7.36]
[1645922324301,1.7728,2748.5,2748.1,7.31]
[1645922324498,1.7728,2748.5,2747.7,0.152449]
[1645922324697,1.7728,2748.5,2747.8,0.18095021]
[1645922324999,4.6403,2749.3,2747.8,0.18095021]
[1645922325000,1.1379,2749.5,2748.2,0.00546922]
[1645922325298,8.12644255,2750.6,2748.3,0.61795021]
[1645922325299,3.1903,2749.7,2748.3,0.61795021]
[1645922325501,1.0,2750.2,2748.4,0.18095021]
[1645922325697,1.0,2750.2,2748.4,7.07363129]
[1645922325698,1.7728,2749.8,2748.4,7.07363129]
[1645922325902,1.7728,2749.8,2748.5,0.72133129]
[1645922326099,1.7728,2749.8,2748.9,0.0054686]
[1645922326903,1.7728,2749.8,2748.5,3.52187768]
[1645922327104,1.7728,2749.8,2748.5,4.237]
[1645922327303,1.7728,2749.8,2748.6,0.18048238]
[1645922327507,0.25,2749.8,2748.4,10.6321]
[1645922327720,1.7728,2749.4,2748.4,10.6321]
[1645922328019,1.0,2749.2,2748.4,2.757]
[1645922328424,0.91019,2749.1,2748.4,2.757]
[1645922328620,5.0,2748.9,2748.1,7.36]
[1645922328826,1.0,2748.2,2747.7,0.007]
[1645922329229,1.0,2748.2,2748.1,0.5]
[1645922329729,1.0,2748.2,2747.8,0.00546623]
[1645922329926,2.7728,2748.2,2747.8,0.00546623]
[1645922330124,2.87113,2748.2,2747.8,0.00546623]
[1645922330323,1.7728,2747.9,2747.8,0.00546623]
[1645922330727,1.7728,2747.9,2747.7,0.007]
[1645922330932,2.8212144,2748.1,2747.7,0.007]
[1645922331124,1.0,2747.9,2747.7,0.007]
[1645922331571,1.91058,2747.9,2747.7,0.007]
[1645922331777,1.0,2747.9,2747.7,0.007]
[1645922331990,0.04993,2748.3,2747.7,0.007]
[1645922332179,1.7728,2748.1,2747.7,0.007]
[1645922332381,5.0,2747.9,2746.8,0.5]
[1645922332586,5.0,2747.3,2746.8,0.45]
[1645922332781,5.0,2747.3,2745.3,6.4889]
[1645922332782,1.7728,2746.9,2745.3,6.4889]
[1645922332983,1.82235,2746.6,2745.3,6.4889]
[1645922333179,1.82235,2746.6,2744.4,1.49670697]
[1645922333180,5.0,2746.3,2745.4,0.04206333]
[1645922333380,5.0,2746.3,2745.2,0.46622942]
[1645922333381,1.7728,2745.4,2745.2,0.46622942]
[1645922333587,2.96,2745.4,2745.2,0.46622942]
[1645922333779,1.67453,2745.4,2745.2,0.46622942]
[1645922333979,1.7728,2745.3,2745.2,0.46622942]
[1645922334379,3.1538,2746.3,2745.2,0.46622942]
[1645922334581,3.1538,2746.3,2745.2,7.82867911]
[1645922334582,1.7728,2746.3,2745.2,7.82867911]
[1645922335434,1.7728,2746.3,2745.2,7.82622942]
[1645922335841,4.66121,2746.2,2745.6,0.00244929]
[1645922336142,1.16121,2746.2,2745.6,0.00244929]
[1645922336537,1.0,2745.7,2745.6,0.00244929]
[1645922336736,1.7728,2745.6,2745.2,0.46622942]
[1645922337137,1.7728,2745.6,2745.2,0.41622942]
[1645922337537,1.91141,2745.7,2745.2,0.41622942]
[1645922337739,1.7728,2745.5,2745.2,0.41622942]
[1645922338971,1.7728,2745.5,2745.2,0.41458442]
[1645922339377,1.7728,2745.4,2745.2,0.41979548]
[1645922340477,1.0,2746.3,2745.2,0.41458442]
[1645922340676,1.7728,2746.1,2745.5,0.32349307]
[1645922341077,1.0,2746.3,2745.5,0.32349307]
[1645922341875,1.0,2746.3,2745.8,0.00521057]